[Event "Titled Tuesday Blitz October 04 Early 2022"]
[White "Timofeev, Artyom"]
[Black "Harsh Suresh"]
[WhiteFideId "4140419"]
[BlackFideId "45018464"]
[WhiteElo "2579"]
[BlackElo "2180"]
[Result "1-0"]
[Round "10"]
[TimeControl "180+1"]
[Date "2022.10.04"]
[WhiteClock "0:00:23"]
[BlackClock "0:00:01"]

1. e4 {[%clk 0:03:00]}  g6 {[%clk 0:02:58]} 2. d4 {[%clk 0:03:00]}  Nf6 {[%clk 0:02:58]} 3. Nc3 {[%clk 0:03:00]}  d5 {[%clk 0:02:58]} 4. e5 {[%clk 0:02:57]}  Ne4 {[%clk 0:02:58]} 5. Bd3 {[%clk 0:02:57]}  Nxc3 {[%clk 0:02:58]} 6. bxc3 {[%clk 0:02:57]}  c5 {[%clk 0:02:59]} 7. h4 {[%clk 0:02:53]}  h5 {[%clk 0:02:49]} 8. Nf3 {[%clk 0:02:38]}  Bg4 {[%clk 0:02:39]} 9. dxc5 {[%clk 0:02:26]}  Qa5 {[%clk 0:02:34]} 10. O-O {[%clk 0:02:24]}  Nc6 {[%clk 0:02:21]} 11. e6 {[%clk 0:02:21]}  Bxe6 {[%clk 0:02:17]} 12. Ng5 {[%clk 0:02:21]}  O-O-O {[%clk 0:01:39]} 13. Nxe6 {[%clk 0:02:11]}  fxe6 {[%clk 0:01:39]} 14. Rb1 {[%clk 0:02:11]}  Qxc3 {[%clk 0:01:31]} 15. Be3 {[%clk 0:02:01]}  Bh6 {[%clk 0:01:27]} 16. Rb3 {[%clk 0:01:59]}  Qa5 {[%clk 0:01:20]} 17. Bxh6 {[%clk 0:01:56]}  Rxh6 {[%clk 0:01:21]} 18. Qb1 {[%clk 0:01:51]}  Qc7 {[%clk 0:01:12]} 19. Qb2 {[%clk 0:01:49]}  e5 {[%clk 0:01:08]} 20. Rb1 {[%clk 0:01:48]}  Rd7 {[%clk 0:01:06]} 21. Bb5 {[%clk 0:01:37]}  d4 {[%clk 0:00:57]} 22. Qc1 {[%clk 0:01:31]}  Rh7 {[%clk 0:00:50]} 23. Qg5 {[%clk 0:01:29]}  Rg7 {[%clk 0:00:36]} 24. Qh6 {[%clk 0:01:23]}  e6 {[%clk 0:00:32]} 25. Bc4 {[%clk 0:01:23]}  Nd8 {[%clk 0:00:30]} 26. Qh8 {[%clk 0:01:07]}  Rh7 {[%clk 0:00:14]} 27. Qf6 {[%clk 0:01:07]}  Qxc5 {[%clk 0:00:12]} 28. Bxe6 {[%clk 0:01:04]}  Nxe6 {[%clk 0:00:13]} 29. Qxe6 {[%clk 0:01:04]}  b6 {[%clk 0:00:12]} 30. a4 {[%clk 0:01:00]}  Qd5 {[%clk 0:00:12]} 31. Qh3 {[%clk 0:00:57]}  Rf7 {[%clk 0:00:09]} 32. Rb5 {[%clk 0:00:55]}  Qc4 {[%clk 0:00:08]} 33. a5 {[%clk 0:00:55]}  Qxc2 {[%clk 0:00:08]} 34. Qg3 {[%clk 0:00:53]}  Rd6 {[%clk 0:00:07]} 35. Rf1 {[%clk 0:00:41]}  Re6 {[%clk 0:00:02]} 36. axb6 {[%clk 0:00:40]}  axb6 {[%clk 0:00:02]} 37. Rxe5 {[%clk 0:00:37]}  Rxe5 {[%clk 0:00:03]} 38. Qxe5 {[%clk 0:00:37]}  Qc7 {[%clk 0:00:03]} 39. Qe4 {[%clk 0:00:33]}  Rf4 {[%clk 0:00:04]} 40. Qxg6 {[%clk 0:00:32]}  Rxh4 {[%clk 0:00:03]} 41. g3 {[%clk 0:00:31]}  Rg4 {[%clk 0:00:03]} 42. Qxh5 {[%clk 0:00:31]}  Rg8 {[%clk 0:00:03]} 43. Qd5 {[%clk 0:00:29]}  Rh8 {[%clk 0:00:03]} 44. Qa8+ {[%clk 0:00:29]}  Qb8 {[%clk 0:00:03]} 45. Rc1+ {[%clk 0:00:29]}  Kd7 {[%clk 0:00:04]} 46. Qc6+ {[%clk 0:00:29]}  Ke7 {[%clk 0:00:03]} 47. Re1+ {[%clk 0:00:29]}  Kf7 {[%clk 0:00:04]} 48. Qd7+ {[%clk 0:00:29]}  Kg6 {[%clk 0:00:03]} 49. Re6+ {[%clk 0:00:28]}  Kg5 {[%clk 0:00:03]} 50. Qg7+ {[%clk 0:00:27]}  Kf5 {[%clk 0:00:02]} 51. Qf6+ {[%clk 0:00:23]}  Kg4 {[%clk 0:00:03]} 52. Qg6+ {[%clk 0:00:23]}  Kf3 {[%clk 0:00:02]} 53. Qf5+ {[%clk 0:00:23]}  Qf4 {[%clk 0:00:01]} 54. Qxf4# {[%clk 0:00:23]} 1-0


[Site "https://www.chess.com"]

[Event "Titled Tuesday Blitz October 04 Early 2022"]
[White "Zhigalko, Sergei"]
[Black "Rohith Krishna S"]
[WhiteFideId "13502956"]
[BlackFideId "46617051"]
[WhiteElo "2662"]
[BlackElo "2270"]
[Result "1-0"]
[Round "10"]
[TimeControl "180+1"]
[Date "2022.10.04"]
[WhiteClock "0:00:03"]
[BlackClock "0:01:02"]

1. e4 {[%clk 0:03:00]}  e5 {[%clk 0:02:57]} 2. Nf3 {[%clk 0:03:01]}  Nc6 {[%clk 0:02:56]} 3. Bc4 {[%clk 0:03:01]}  Bc5 {[%clk 0:02:55]} 4. b4 {[%clk 0:03:01]}  Bxb4 {[%clk 0:02:55]} 5. c3 {[%clk 0:03:01]}  Be7 {[%clk 0:02:56]} 6. d4 {[%clk 0:03:01]}  Na5 {[%clk 0:02:56]} 7. Bd3 {[%clk 0:03:02]}  exd4 {[%clk 0:02:54]} 8. cxd4 {[%clk 0:03:02]}  d5 {[%clk 0:02:54]} 9. e5 {[%clk 0:02:15]}  h5 {[%clk 0:02:51]} 10. O-O {[%clk 0:02:12]}  Nc6 {[%clk 0:02:36]} 11. Nbd2 {[%clk 0:02:00]}  Nh6 {[%clk 0:02:35]} 12. Qb3 {[%clk 0:01:53]}  O-O {[%clk 0:02:25]} 13. Re1 {[%clk 0:01:52]}  Rb8 {[%clk 0:02:20]} 14. Nf1 {[%clk 0:01:36]}  Nf5 {[%clk 0:02:19]} 15. Qd1 {[%clk 0:01:12]}  g6 {[%clk 0:02:06]} 16. Bc2 {[%clk 0:00:52]}  Be6 {[%clk 0:02:05]} 17. Ng3 {[%clk 0:00:50]}  Nxg3 {[%clk 0:02:04]} 18. hxg3 {[%clk 0:00:51]}  Bg4 {[%clk 0:02:04]} 19. Rb1 {[%clk 0:00:43]}  Nb4 {[%clk 0:02:00]} 20. Bb3 {[%clk 0:00:38]}  c6 {[%clk 0:01:51]} 21. Bh6 {[%clk 0:00:37]}  Re8 {[%clk 0:01:50]} 22. Qd2 {[%clk 0:00:37]}  Na6 {[%clk 0:01:48]} 23. Bc2 {[%clk 0:00:35]}  Nc7 {[%clk 0:01:48]} 24. Nh2 {[%clk 0:00:25]}  Bd7 {[%clk 0:01:41]} 25. Rb3 {[%clk 0:00:23]}  Ne6 {[%clk 0:01:38]} 26. g4 {[%clk 0:00:23]}  h4 {[%clk 0:01:37]} 27. Nf3 {[%clk 0:00:20]}  b6 {[%clk 0:01:32]} 28. g5 {[%clk 0:00:13]}  Bf8 {[%clk 0:01:26]} 29. Bxf8 {[%clk 0:00:07]}  Rxf8 {[%clk 0:01:24]} 30. Ra3 {[%clk 0:00:07]}  Rb7 {[%clk 0:01:23]} 31. Kh2 {[%clk 0:00:07]}  Bc8 {[%clk 0:01:22]} 32. Rh1 {[%clk 0:00:06]}  Qe7 {[%clk 0:01:20]} 33. Rc3 {[%clk 0:00:05]}  Rc7 {[%clk 0:01:16]} 34. Kg1 {[%clk 0:00:06]}  c5 {[%clk 0:01:11]} 35. Rxh4 {[%clk 0:00:06]}  c4 {[%clk 0:01:11]} 36. Qe3 {[%clk 0:00:03]}  Kg7 {[%clk 0:01:10]} 37. Bd1 {[%clk 0:00:02]}  Rh8 {[%clk 0:01:11]} 38. Rh6 {[%clk 0:00:02]}  Nxg5 {[%clk 0:01:05]} 39. Rxh8 {[%clk 0:00:02]}  Nxf3+ {[%clk 0:01:05]} 40. Bxf3 {[%clk 0:00:03]}  Kxh8 {[%clk 0:01:06]} 41. Bxd5 {[%clk 0:00:03]}  Be6 {[%clk 0:01:05]} 42. Qh6+ {[%clk 0:00:04]}  Kg8 {[%clk 0:01:04]} 43. Bxe6 {[%clk 0:00:05]}  fxe6 {[%clk 0:01:03]} 44. Qxg6+ {[%clk 0:00:04]}  Kf8 {[%clk 0:00:59]} 45. Rf3+ {[%clk 0:00:04]}  Qf7 {[%clk 0:01:00]} 46. Rxf7+ {[%clk 0:00:04]}  Rxf7 {[%clk 0:01:01]} 47. Qxe6 {[%clk 0:00:05]}  b5 {[%clk 0:01:00]} 48. Qc8+ {[%clk 0:00:04]}  Kg7 {[%clk 0:00:59]} 49. d5 {[%clk 0:00:05]}  Rf4 {[%clk 0:00:58]} 50. d6 {[%clk 0:00:04]}  c3 {[%clk 0:00:58]} 51. Qxc3 {[%clk 0:00:04]}  Rc4 {[%clk 0:00:59]} 52. Qg3+ {[%clk 0:00:04]}  Kf7 {[%clk 0:01:00]} 53. Qf3+ {[%clk 0:00:03]}  Ke6 {[%clk 0:01:01]} 54. Qf6+ {[%clk 0:00:03]}  Kd5 {[%clk 0:01:01]} 55. d7 {[%clk 0:00:03]}  Kc5 {[%clk 0:01:02]} 56. Qd6# {[%clk 0:00:03]} 1-0


[Site "https://www.chess.com"]

[Event "Titled Tuesday Blitz October 04 Early 2022"]
[White "Gabrielian, Artur"]
[Black "Dushyant Sharma"]
[WhiteFideId "4131002"]
[BlackFideId "25065130"]
[WhiteElo "2432"]
[BlackElo "2270"]
[Result "1-0"]
[Round "11"]
[TimeControl "180+1"]
[Date "2022.10.04"]
[WhiteClock "0:00:42"]
[BlackClock "0:00:02"]

1. e4 {[%clk 0:03:00]}  e5 {[%clk 0:02:59]} 2. Nc3 {[%clk 0:02:59]}  Nc6 {[%clk 0:02:59]} 3. g3 {[%clk 0:02:59]}  Nf6 {[%clk 0:02:57]} 4. Bg2 {[%clk 0:03:00]}  Bc5 {[%clk 0:02:52]} 5. Nge2 {[%clk 0:03:00]}  d6 {[%clk 0:02:47]} 6. O-O {[%clk 0:02:58]}  Bg4 {[%clk 0:02:48]} 7. h3 {[%clk 0:02:55]}  Be6 {[%clk 0:02:47]} 8. Na4 {[%clk 0:02:50]}  Qd7 {[%clk 0:02:43]} 9. Nxc5 {[%clk 0:02:49]}  dxc5 {[%clk 0:02:44]} 10. Kh2 {[%clk 0:02:50]}  O-O-O {[%clk 0:02:41]} 11. b3 {[%clk 0:02:42]}  Nd4 {[%clk 0:02:40]} 12. d3 {[%clk 0:02:37]}  h5 {[%clk 0:02:34]} 13. Nxd4 {[%clk 0:02:37]}  cxd4 {[%clk 0:02:28]} 14. h4 {[%clk 0:02:37]}  Ng4+ {[%clk 0:02:25]} 15. Kg1 {[%clk 0:02:37]}  f6 {[%clk 0:02:25]} 16. Qe2 {[%clk 0:02:27]}  Rdg8 {[%clk 0:02:16]} 17. f3 {[%clk 0:02:20]}  Nh6 {[%clk 0:02:16]} 18. f4 {[%clk 0:02:21]}  exf4 {[%clk 0:02:07]} 19. gxf4 {[%clk 0:02:17]}  g5 {[%clk 0:01:54]} 20. fxg5 {[%clk 0:02:16]}  fxg5 {[%clk 0:01:55]} 21. Bxg5 {[%clk 0:02:16]}  Nf7 {[%clk 0:01:55]} 22. Rxf7 {[%clk 0:02:09]}  Bxf7 {[%clk 0:01:48]} 23. Rf1 {[%clk 0:02:07]}  Be6 {[%clk 0:01:43]} 24. Qf3 {[%clk 0:02:03]}  c6 {[%clk 0:01:37]} 25. Kh2 {[%clk 0:01:55]}  Rf8 {[%clk 0:01:34]} 26. Qxf8+ {[%clk 0:01:29]}  Rxf8 {[%clk 0:01:35]} 27. Rxf8+ {[%clk 0:01:28]}  Kc7 {[%clk 0:01:36]} 28. Rf6 {[%clk 0:01:28]}  Kb6 {[%clk 0:01:27]} 29. b4 {[%clk 0:01:28]}  Kb5 {[%clk 0:01:24]} 30. e5 {[%clk 0:00:57]}  Kxb4 {[%clk 0:01:17]} 31. Bf3 {[%clk 0:00:57]}  Kc3 {[%clk 0:00:57]} 32. Bxh5 {[%clk 0:00:57]}  Kxc2 {[%clk 0:00:56]} 33. Bg6 {[%clk 0:00:57]}  Bxa2 {[%clk 0:00:46]} 34. h5 {[%clk 0:00:50]}  Qg4 {[%clk 0:00:43]} 35. Rf2+ {[%clk 0:00:50]}  Kb1 {[%clk 0:00:42]} 36. Rg2 {[%clk 0:00:50]}  Qe6 {[%clk 0:00:37]} 37. Bf6 {[%clk 0:00:47]}  Bd5 {[%clk 0:00:15]} 38. Rg1+ {[%clk 0:00:47]}  Kc2 {[%clk 0:00:16]} 39. h6 {[%clk 0:00:47]}  Be4 {[%clk 0:00:02]} 40. Bxe4 {[%clk 0:00:47]}  Qf7 {[%clk 0:00:02]} 41. Rg5 {[%clk 0:00:46]}  Qf8 {[%clk 0:00:01]} 42. h7 {[%clk 0:00:43]}  Qh6+ {[%clk 0:00:01]} 43. Kg3 {[%clk 0:00:43]}  Qh1 {[%clk 0:00:02]} 44. Bxh1 {[%clk 0:00:42]} 1-0


[Site "https://www.chess.com"]

[Event "Titled Tuesday Blitz October 04 Early 2022"]
[White "Ginzburg, Yakov"]
[Black "Visakh N R"]
[WhiteFideId "4157176"]
[BlackFideId "25012223"]
[WhiteElo "2305"]
[BlackElo "2466"]
[Result "0-1"]
[Round "11"]
[TimeControl "180+1"]
[Date "2022.10.04"]
[WhiteClock "0:00:05"]
[BlackClock "0:00:05"]

1. d4 {[%clk 0:02:59]}  Nf6 {[%clk 0:02:59]} 2. Nf3 {[%clk 0:02:59]}  d5 {[%clk 0:02:59]} 3. g3 {[%clk 0:02:59]}  Bf5 {[%clk 0:02:56]} 4. c4 {[%clk 0:02:58]}  e6 {[%clk 0:02:53]} 5. Bg2 {[%clk 0:02:57]}  c6 {[%clk 0:02:51]} 6. Qb3 {[%clk 0:02:57]}  Qb6 {[%clk 0:02:48]} 7. c5 {[%clk 0:02:57]}  Qxb3 {[%clk 0:02:48]} 8. axb3 {[%clk 0:02:57]}  Na6 {[%clk 0:02:46]} 9. Bd2 {[%clk 0:02:41]}  Ne4 {[%clk 0:02:44]} 10. Nc3 {[%clk 0:02:37]}  Nb4 {[%clk 0:02:40]} 11. O-O {[%clk 0:02:36]}  Nxd2 {[%clk 0:02:18]} 12. Nxd2 {[%clk 0:02:31]}  e5 {[%clk 0:02:18]} 13. e3 {[%clk 0:02:28]}  Be7 {[%clk 0:02:15]} 14. Ra4 {[%clk 0:02:17]}  Nd3 {[%clk 0:02:15]} 15. Nxd5 {[%clk 0:01:50]}  cxd5 {[%clk 0:02:12]} 16. Bxd5 {[%clk 0:01:50]}  O-O {[%clk 0:01:58]} 17. Bxb7 {[%clk 0:01:49]}  Rab8 {[%clk 0:01:58]} 18. c6 {[%clk 0:01:49]}  exd4 {[%clk 0:01:46]} 19. exd4 {[%clk 0:01:31]}  Be6 {[%clk 0:01:43]} 20. Rxa7 {[%clk 0:01:09]}  Bd8 {[%clk 0:01:43]} 21. Nc4 {[%clk 0:01:02]}  Nb4 {[%clk 0:01:37]} 22. Rd1 {[%clk 0:00:56]}  Bd5 {[%clk 0:01:34]} 23. Ne5 {[%clk 0:00:54]}  Re8 {[%clk 0:01:00]} 24. Ra4 {[%clk 0:00:30]}  Bxb3 {[%clk 0:00:30]} 25. Rxb4 {[%clk 0:00:27]}  Bxd1 {[%clk 0:00:30]} 26. Kg2 {[%clk 0:00:19]}  Bc7 {[%clk 0:00:24]} 27. Nd7 {[%clk 0:00:16]}  Rbd8 {[%clk 0:00:24]} 28. d5 {[%clk 0:00:15]}  Bc2 {[%clk 0:00:22]} 29. Kf3 {[%clk 0:00:12]}  Bf5 {[%clk 0:00:21]} 30. Rc4 {[%clk 0:00:09]}  g5 {[%clk 0:00:17]} 31. g4 {[%clk 0:00:08]}  Bxd7 {[%clk 0:00:14]} 32. cxd7 {[%clk 0:00:08]}  Rxd7 {[%clk 0:00:15]} 33. Bc6 {[%clk 0:00:08]}  Ree7 {[%clk 0:00:16]} 34. Bxd7 {[%clk 0:00:08]}  Rxd7 {[%clk 0:00:16]} 35. Ke4 {[%clk 0:00:09]}  Bf4 {[%clk 0:00:16]} 36. h4 {[%clk 0:00:08]}  Re7+ {[%clk 0:00:16]} 37. Kf3 {[%clk 0:00:08]}  h6 {[%clk 0:00:14]} 38. b4 {[%clk 0:00:07]}  Kg7 {[%clk 0:00:14]} 39. b5 {[%clk 0:00:08]}  Rb7 {[%clk 0:00:14]} 40. Rb4 {[%clk 0:00:07]}  Bd6 {[%clk 0:00:14]} 41. Rb3 {[%clk 0:00:07]}  Bc5 {[%clk 0:00:15]} 42. hxg5 {[%clk 0:00:07]}  hxg5 {[%clk 0:00:15]} 43. Ke2 {[%clk 0:00:07]}  Kf6 {[%clk 0:00:15]} 44. Rf3+ {[%clk 0:00:06]}  Ke7 {[%clk 0:00:13]} 45. Rf5 {[%clk 0:00:05]}  f6 {[%clk 0:00:13]} 46. f4 {[%clk 0:00:06]}  gxf4 {[%clk 0:00:12]} 47. Rxf4 {[%clk 0:00:04]}  Rxb5 {[%clk 0:00:12]} 48. g5 {[%clk 0:00:05]}  fxg5 {[%clk 0:00:12]} 49. Rf5 {[%clk 0:00:05]}  g4 {[%clk 0:00:07]} 50. Rg5 {[%clk 0:00:06]}  Rb4 {[%clk 0:00:07]} 51. Rg6 {[%clk 0:00:04]}  Bd6 {[%clk 0:00:07]} 52. Re6+ {[%clk 0:00:02]}  Kd7 {[%clk 0:00:07]} 53. Rg6 {[%clk 0:00:03]}  Kc7 {[%clk 0:00:07]} 54. Kf2 {[%clk 0:00:04]}  g3+ {[%clk 0:00:07]} 55. Kg2 {[%clk 0:00:04]}  Rd4 {[%clk 0:00:07]} 56. Rg5 {[%clk 0:00:04]}  Kb6 {[%clk 0:00:07]} 57. Rg8 {[%clk 0:00:04]}  Kc5 {[%clk 0:00:07]} 58. Re8 {[%clk 0:00:04]}  Rd2+ {[%clk 0:00:07]} 59. Kg1 {[%clk 0:00:04]}  Kxd5 {[%clk 0:00:06]} 60. Rd8 {[%clk 0:00:04]}  Ke4 {[%clk 0:00:06]} 61. Re8+ {[%clk 0:00:04]}  Be5 {[%clk 0:00:06]} 62. Rf8 {[%clk 0:00:03]}  Bd4+ {[%clk 0:00:06]} 63. Kf1 {[%clk 0:00:02]}  g2+ {[%clk 0:00:06]} 64. Ke1 {[%clk 0:00:02]}  g1=Q+ {[%clk 0:00:06]} 65. Kxd2 {[%clk 0:00:02]}  Qe3+ {[%clk 0:00:06]} 66. Kc2 {[%clk 0:00:03]}  Qd3+ {[%clk 0:00:06]} 67. Kc1 {[%clk 0:00:03]}  Qc4+ {[%clk 0:00:06]} 68. Kd1 {[%clk 0:00:04]}  Qa4+ {[%clk 0:00:06]} 69. Ke2 {[%clk 0:00:04]}  Qc2+ {[%clk 0:00:07]} 70. Ke1 {[%clk 0:00:05]}  Kd3 {[%clk 0:00:05]} 71. Rf3+ {[%clk 0:00:04]}  Be3 {[%clk 0:00:05]} 72. Kf1 {[%clk 0:00:05]}  Qe2# {[%clk 0:00:05]} 0-1


[Site "https://www.chess.com"]

[Event "Titled Tuesday Blitz October 04 Early 2022"]
[White "Hambleton, Aman"]
[Black "Girel, Joseph"]
[WhiteFideId "2606577"]
[BlackFideId "36033561"]
[WhiteElo "2538"]
[BlackElo "2281"]
[Result "1-0"]
[Round "11"]
[TimeControl "180+1"]
[Date "2022.10.04"]
[WhiteClock "0:00:04"]
[BlackClock "0:00:08"]

1. d4 {[%clk 0:02:53]}  Nf6 {[%clk 0:02:58]} 2. Bf4 {[%clk 0:02:53]}  d5 {[%clk 0:02:56]} 3. e3 {[%clk 0:02:53]}  c5 {[%clk 0:02:56]} 4. c3 {[%clk 0:02:53]}  Nc6 {[%clk 0:02:57]} 5. Nd2 {[%clk 0:02:54]}  e6 {[%clk 0:02:56]} 6. Ngf3 {[%clk 0:02:53]}  Nh5 {[%clk 0:02:56]} 7. Be5 {[%clk 0:02:41]}  f6 {[%clk 0:02:54]} 8. Bg3 {[%clk 0:02:38]}  g6 {[%clk 0:02:51]} 9. Bd3 {[%clk 0:02:37]}  Bd7 {[%clk 0:02:38]} 10. Qe2 {[%clk 0:02:35]}  Bg7 {[%clk 0:02:18]} 11. Bd6 {[%clk 0:02:29]}  c4 {[%clk 0:02:11]} 12. Bxc4 {[%clk 0:01:42]}  dxc4 {[%clk 0:02:12]} 13. g4 {[%clk 0:01:43]}  e5 {[%clk 0:01:51]} 14. gxh5 {[%clk 0:01:39]}  Bg4 {[%clk 0:01:51]} 15. Ba3 {[%clk 0:01:24]}  f5 {[%clk 0:01:28]} 16. Qxc4 {[%clk 0:01:09]}  Qd7 {[%clk 0:01:28]} 17. Ng5 {[%clk 0:00:37]}  O-O-O {[%clk 0:00:54]} 18. Nf7 {[%clk 0:00:33]}  exd4 {[%clk 0:00:50]} 19. cxd4 {[%clk 0:00:27]}  Bxd4 {[%clk 0:00:47]} 20. Nxd8 {[%clk 0:00:07]}  Rxd8 {[%clk 0:00:46]} 21. exd4 {[%clk 0:00:06]}  Re8+ {[%clk 0:00:45]} 22. Kf1 {[%clk 0:00:07]}  Bh3+ {[%clk 0:00:23]} 23. Kg1 {[%clk 0:00:06]}  f4 {[%clk 0:00:24]} 24. f3 {[%clk 0:00:04]}  Qf5 {[%clk 0:00:19]} 25. Kf2 {[%clk 0:00:01]}  Qg5 {[%clk 0:00:18]} 26. Rhg1 {[%clk 0:00:01]}  Qh4+ {[%clk 0:00:18]} 27. Rg3 {[%clk 0:00:02]}  fxg3+ {[%clk 0:00:17]} 28. hxg3 {[%clk 0:00:03]}  Qxh5 {[%clk 0:00:18]} 29. Ne4 {[%clk 0:00:03]}  Be6 {[%clk 0:00:15]} 30. Nd6+ {[%clk 0:00:03]}  Kd7 {[%clk 0:00:15]} 31. Qf1 {[%clk 0:00:03]}  Qh2+ {[%clk 0:00:15]} 32. Qg2 {[%clk 0:00:03]}  Qxg2+ {[%clk 0:00:15]} 33. Kxg2 {[%clk 0:00:04]}  Rf8 {[%clk 0:00:15]} 34. Nxb7 {[%clk 0:00:03]}  Rf5 {[%clk 0:00:12]} 35. Nc5+ {[%clk 0:00:03]}  Ke7 {[%clk 0:00:13]} 36. g4 {[%clk 0:00:02]}  Rd5 {[%clk 0:00:13]} 37. Ne4+ {[%clk 0:00:02]}  Kd8 {[%clk 0:00:11]} 38. Bc5 {[%clk 0:00:02]}  Nxd4 {[%clk 0:00:11]} 39. Bxd4 {[%clk 0:00:02]}  Rxd4 {[%clk 0:00:11]} 40. Nc3 {[%clk 0:00:02]}  Bd7 {[%clk 0:00:10]} 41. Rd1 {[%clk 0:00:02]}  Rc4 {[%clk 0:00:10]} 42. Kg3 {[%clk 0:00:02]}  Kc8 {[%clk 0:00:10]} 43. Ne4 {[%clk 0:00:03]}  Kc7 {[%clk 0:00:09]} 44. Rd2 {[%clk 0:00:02]}  Rc1 {[%clk 0:00:09]} 45. b3 {[%clk 0:00:02]}  Bc6 {[%clk 0:00:10]} 46. Ng5 {[%clk 0:00:03]}  h6 {[%clk 0:00:09]} 47. Ne6+ {[%clk 0:00:03]}  Kb6 {[%clk 0:00:09]} 48. Nf4 {[%clk 0:00:03]}  g5 {[%clk 0:00:07]} 49. Nd3 {[%clk 0:00:03]}  Rc3 {[%clk 0:00:07]} 50. Ne5 {[%clk 0:00:03]}  Bb7 {[%clk 0:00:06]} 51. Rd6+ {[%clk 0:00:04]}  Kc7 {[%clk 0:00:06]} 52. Rxh6 {[%clk 0:00:02]}  Re3 {[%clk 0:00:06]} 53. Re6 {[%clk 0:00:02]}  Bd5 {[%clk 0:00:06]} 54. Kf2 {[%clk 0:00:01]}  Rc3 {[%clk 0:00:05]} 55. Rf6 {[%clk 0:00:02]}  Rc2+ {[%clk 0:00:05]} 56. Ke3 {[%clk 0:00:03]}  Rxa2 {[%clk 0:00:05]} 57. Rf5 {[%clk 0:00:03]}  Rb2 {[%clk 0:00:05]} 58. Kd4 {[%clk 0:00:03]}  Bb7 {[%clk 0:00:04]} 59. Kc3 {[%clk 0:00:03]}  Rf2 {[%clk 0:00:03]} 60. Rxg5 {[%clk 0:00:02]}  a5 {[%clk 0:00:03]} 61. Rg7+ {[%clk 0:00:02]}  Kb6 {[%clk 0:00:03]} 62. Rg6+ {[%clk 0:00:02]}  Ka7 {[%clk 0:00:03]} 63. Rf6 {[%clk 0:00:03]}  Rg2 {[%clk 0:00:03]} 64. Rf7 {[%clk 0:00:03]}  Rg3 {[%clk 0:00:03]} 65. Nc6+ {[%clk 0:00:03]}  Kb6 {[%clk 0:00:04]} 66. Nd4 {[%clk 0:00:03]}  Ba8 {[%clk 0:00:02]} 67. Rf6+ {[%clk 0:00:04]}  Kc5 {[%clk 0:00:03]} 68. Rf5+ {[%clk 0:00:03]}  Bd5 {[%clk 0:00:03]} 69. g5 {[%clk 0:00:02]}  Rg1 {[%clk 0:00:03]} 70. Ne6+ {[%clk 0:00:01]}  Kd6 {[%clk 0:00:03]} 71. Nf4 {[%clk 0:00:02]}  Bc6 {[%clk 0:00:01]} 72. Rf6+ {[%clk 0:00:02]}  Kc7 {[%clk 0:00:02]} 73. Nd3 {[%clk 0:00:02]}  Kb6 {[%clk 0:00:03]} 74. Ne5 {[%clk 0:00:02]}  Kc5 {[%clk 0:00:03]} 75. Nxc6 {[%clk 0:00:02]}  Kd5 {[%clk 0:00:04]} 76. Nxa5 {[%clk 0:00:02]}  Rg3 {[%clk 0:00:04]} 77. Kb4 {[%clk 0:00:02]}  Rxf3 {[%clk 0:00:05]} 78. Rxf3 {[%clk 0:00:02]}  Ke5 {[%clk 0:00:06]} 79. Rc3 {[%clk 0:00:03]}  Ke4 {[%clk 0:00:07]} 80. Rc4+ {[%clk 0:00:04]}  Ke5 {[%clk 0:00:08]} 81. Kb5 {[%clk 0:00:04]} 1-0


[Site "https://www.chess.com"]